[Event "*** Titled Tuesday Blitz"]
[Site "Chess.com"]
[Date "2021.04.06"]
[Round "6"]
[White "Ave_Mariia"]
[Black "chessbia"]
[Result "1/2-1/2"]
[WhiteElo "2465"]
[BlackElo "2327"]
[TimeControl "180+1"]
[EndTime "11:10:59 PDT"]
[Termination "Game drawn by repetition"]

1. d4 {[%clk 0:03:00.9]} 1... d5 {[%clk 0:02:58.6]} 2. c4 {[%clk 0:03:00.5]}
2... e6 {[%clk 0:02:58]} 3. Nf3 {[%clk 0:03:00.2]} 3... Nf6 {[%clk 0:02:57.7]}
4. g3 {[%clk 0:03:00.1]} 4... Be7 {[%clk 0:02:56.2]} 5. Bg2 {[%clk 0:03:00.2]}
5... O-O {[%clk 0:02:56.7]} 6. O-O {[%clk 0:03:00.5]} 6... dxc4 {[%clk
0:02:55.9]} 7. Qc2 {[%clk 0:03:00.8]} 7... a6 {[%clk 0:02:55.7]} 8. a4 {[%clk
0:03:01.2]} 8... Bd7 {[%clk 0:02:51.5]} 9. Qxc4 {[%clk 0:03:01.3]} 9... Bc6
{[%clk 0:02:49.3]} 10. Bf4 {[%clk 0:03:01.4]} 10... Nbd7 {[%clk 0:02:44.6]} 11.
Nc3 {[%clk 0:02:58.2]} 11... Nb6 {[%clk 0:02:41.5]} 12. Qd3 {[%clk 0:02:57.7]}
12... Nbd5 {[%clk 0:02:38.1]} 13. Bc1 {[%clk 0:02:50]} 13... Nb4 {[%clk
0:02:35.7]} 14. Qb1 {[%clk 0:02:45.4]} 14... Bxf3 {[%clk 0:01:57.5]} 15. Bxf3
{[%clk 0:02:44.4]} 15... Qxd4 {[%clk 0:01:57.1]} 16. Be3 {[%clk 0:02:35.9]}
16... Qe5 {[%clk 0:01:48.7]} 17. Bf4 {[%clk 0:02:16.4]} 17... Qa5 {[%clk
0:01:47.2]} 18. Bxb7 {[%clk 0:02:13.9]} 18... Rab8 {[%clk 0:01:47]} 19. Bg2
{[%clk 0:02:09.8]} 19... Bd6 {[%clk 0:01:43.2]} 20. Bxd6 {[%clk 0:02:03.1]}
20... cxd6 {[%clk 0:01:44.1]} 21. Rd1 {[%clk 0:01:54.1]} 21... d5 {[%clk
0:01:44.1]} 22. e4 {[%clk 0:01:51.3]} 22... Rfd8 {[%clk 0:01:38.6]} 23. exd5
{[%clk 0:01:24.8]} 23... Nbxd5 {[%clk 0:01:33.8]} 24. Nxd5 {[%clk 0:01:20.8]}
24... Nxd5 {[%clk 0:01:34.7]} 25. Qc2 {[%clk 0:01:15.3]} 25... g6 {[%clk
0:01:16.4]} 26. Rd4 {[%clk 0:01:08.1]} 26... Qb6 {[%clk 0:01:05]} 27. Rd2 {[%clk
0:01:01.6]} 27... Nb4 {[%clk 0:00:59.6]} 28. Qc3 {[%clk 0:00:57.7]} 28... Rxd2
{[%clk 0:00:53.3]} 29. Qxd2 {[%clk 0:00:58.6]} 29... Rd8 {[%clk 0:00:53.2]} 30.
Qe2 {[%clk 0:00:55.3]} 30... a5 {[%clk 0:00:51.5]} 31. Rc1 {[%clk 0:00:48.1]}
31... Qd4 {[%clk 0:00:40.1]} 32. Bf1 {[%clk 0:00:39.6]} 32... Kg7 {[%clk
0:00:32.5]} 33. Rc4 {[%clk 0:00:36.3]} 33... Qd2 {[%clk 0:00:20.6]} 34. Qe5+
{[%clk 0:00:33.4]} 34... Kg8 {[%clk 0:00:20.4]} 35. Qxa5 {[%clk 0:00:27.8]}
35... Na2 {[%clk 0:00:12]} 36. Qxd2 {[%clk 0:00:26.9]} 36... Rxd2 {[%clk
0:00:12.7]} 37. b4 {[%clk 0:00:25.2]} 37... Rb2 {[%clk 0:00:11.5]} 38. b5 {[%clk
0:00:25.1]} 38... Nb4 {[%clk 0:00:10.6]} 39. a5 {[%clk 0:00:23.3]} 39... Nd5
{[%clk 0:00:10.5]} 40. a6 {[%clk 0:00:19.8]} 40... Kg7 {[%clk 0:00:08.8]} 41.
Rc8 {[%clk 0:00:17.3]} 41... Ra2 {[%clk 0:00:07]} 42. Rb8 {[%clk 0:00:16.8]}
42... h5 {[%clk 0:00:05.7]} 43. Rb7 {[%clk 0:00:17]} 43... h4 {[%clk 0:00:04.4]}
44. a7 {[%clk 0:00:16.6]} 44... hxg3 {[%clk 0:00:05.3]} 45. hxg3 {[%clk
0:00:16.8]} 45... Kf6 {[%clk 0:00:04.4]} 46. b6 {[%clk 0:00:16.7]} 46... Nxb6
{[%clk 0:00:04.1]} 47. Rxb6 {[%clk 0:00:16.7]} 47... Rxa7 {[%clk 0:00:05]} 48.
Kg2 {[%clk 0:00:16.4]} 48... Ra1 {[%clk 0:00:05.3]} 49. Bd3 {[%clk 0:00:15.4]}
49... g5 {[%clk 0:00:05.4]} 50. Kf3 {[%clk 0:00:12.9]} 50... Ra3 {[%clk
0:00:04.8]} 51. Ke3 {[%clk 0:00:13.1]} 51... Ke5 {[%clk 0:00:02.9]} 52. Rb5+
{[%clk 0:00:12.9]} 52... Kf6 {[%clk 0:00:03.5]} 53. Ke2 {[%clk 0:00:11.1]} 53...
Ra2+ {[%clk 0:00:03.3]} 54. Kf3 {[%clk 0:00:11]} 54... Ra3 {[%clk 0:00:03.8]}
55. Ke4 {[%clk 0:00:11.2]} 55... Ra4+ {[%clk 0:00:03.7]} 56. Ke3 {[%clk
0:00:10.6]} 56... Ra3 {[%clk 0:00:03.9]} 57. Rb4 {[%clk 0:00:11]} 57... Ke7
{[%clk 0:00:03]} 58. Rd4 {[%clk 0:00:08.2]} 58... Kf6 {[%clk 0:00:03.1]} 59. Ke2
{[%clk 0:00:07]} 59... Ke5 {[%clk 0:00:03.1]} 60. Re4+ {[%clk 0:00:07]} 60...
Kf6 {[%clk 0:00:03.1]} 61. Rb4 {[%clk 0:00:06.8]} 61... Ra2+ {[%clk 0:00:03]}
62. Kf1 {[%clk 0:00:06.7]} 62... Ra1+ {[%clk 0:00:02.9]} 63. Kg2 {[%clk
0:00:06.7]} 63... Ra2 {[%clk 0:00:03.8]} 64. Rb7 {[%clk 0:00:05.1]} 64... Ra3
{[%clk 0:00:04.2]} 65. Bb5 {[%clk 0:00:05.4]} 65... Kg6 {[%clk 0:00:04.3]} 66.
Be8 {[%clk 0:00:05.4]} 66... Kf6 {[%clk 0:00:02.6]} 67. Bxf7 {[%clk 0:00:05.5]}
67... e5 {[%clk 0:00:02.6]} 68. Bg8 {[%clk 0:00:05.8]} 68... e4 {[%clk 0:00:02]}
69. Rf7+ {[%clk 0:00:06.2]} 69... Ke5 {[%clk 0:00:02.3]} 70. Re7+ {[%clk
0:00:06.5]} 70... Kf5 {[%clk 0:00:02.3]} 71. Bh7+ {[%clk 0:00:06.4]} 71... Kf6
{[%clk 0:00:02.6]} 72. Bxe4 {[%clk 0:00:02.6]} 72... Ra2 {[%clk 0:00:03]} 73.
Re8 {[%clk 0:00:02.2]} 73... g4 {[%clk 0:00:02.6]} 74. Rb8 {[%clk 0:00:02]}
74... Ke5 {[%clk 0:00:02.7]} 75. Bd5 {[%clk 0:00:02.9]} 75... Kxd5 {[%clk
0:00:01.8]} 76. Rd8+ {[%clk 0:00:03.5]} 76... Ke5 {[%clk 0:00:02.7]} 77. Rg8
{[%clk 0:00:03.5]} 77... Kf6 {[%clk 0:00:03.6]} 78. Rf8+ {[%clk 0:00:03.8]}
78... Kg5 {[%clk 0:00:03.7]} 79. Rg8+ {[%clk 0:00:03.6]} 79... Kf5 {[%clk
0:00:04.6]} 80. Kh2 {[%clk 0:00:04]} 80... Rxf2+ {[%clk 0:00:04]} 81. Kg1 {[%clk
0:00:04.6]} 81... Rf3 {[%clk 0:00:04.9]} 82. Kg2 {[%clk 0:00:05.1]} 82... Re3
{[%clk 0:00:04.7]} 83. Rf8+ {[%clk 0:00:05.4]} 83... Kg5 {[%clk 0:00:05.6]} 84.
Rg8+ {[%clk 0:00:05.7]} 84... Kf5 {[%clk 0:00:05.3]} 85. Rh8 {[%clk 0:00:06.2]}
85... Ra3 {[%clk 0:00:05.1]} 86. Rf8+ {[%clk 0:00:06]} 86... Kg5 {[%clk
0:00:05.2]} 87. Rg8+ {[%clk 0:00:06.3]} 87... Kf5 {[%clk 0:00:05.5]} 88. Rf8+
{[%clk 0:00:06.8]} 88... Kg5 {[%clk 0:00:06]} 89. Kf2 {[%clk 0:00:07.4]} 89...
Ra2+ {[%clk 0:00:05.9]} 90. Ke3 {[%clk 0:00:07.8]} 90... Ra3+ {[%clk 0:00:05.9]}
91. Kf2 {[%clk 0:00:08.2]} 91... Ra2+ {[%clk 0:00:05.6]} 92. Kg1 {[%clk
0:00:08.4]} 92... Ra3 {[%clk 0:00:05.2]} 93. Kg2 {[%clk 0:00:08.4]} 93... Ra2+
{[%clk 0:00:05.4]} 94. Kg1 {[%clk 0:00:07.9]} 94... Ra1+ {[%clk 0:00:05.5]} 95.
Kg2 {[%clk 0:00:07.5]} 95... Ra2+ {[%clk 0:00:05.8]} 96. Kf1 {[%clk 0:00:07.4]}
96... Ra1+ {[%clk 0:00:06]} 97. Ke2 {[%clk 0:00:07.3]} 97... Ra2+ {[%clk
0:00:06.4]} 98. Ke3 {[%clk 0:00:07.4]} 98... Ra3+ {[%clk 0:00:06.6]} 99. Ke4
{[%clk 0:00:07.9]} 99... Rxg3 {[%clk 0:00:05.5]} 100. Rg8+ {[%clk 0:00:08.3]}
100... Kh4 {[%clk 0:00:05.2]} 101. Rh8+ {[%clk 0:00:08.7]} 101... Kg5 {[%clk
0:00:05.2]} 102. Rg8+ {[%clk 0:00:09.1]} 102... Kh4 {[%clk 0:00:05.6]} 103. Rh8+
{[%clk 0:00:09.3]} 103... Kg5 {[%clk 0:00:05.7]} 104. Rg8+ {[%clk 0:00:07.8]}
1/2-1/2

[Event "*** Titled Tuesday Blitz"]
[Site "Chess.com"]
[Date "2021.04.06"]
[Round "7"]
[White "AttackSparrow"]
[Black "Smile2005"]
[Result "1-0"]
[WhiteElo "2536"]
[BlackElo "2372"]
[TimeControl "180+1"]
[EndTime "11:12:38 PDT"]
[Termination "AttackSparrow won by resignation"]

1. e4 {[%clk 0:03:00.9]} 1... d5 {[%clk 0:02:59.4]} 2. exd5 {[%clk 0:03:01.8]}
2... Nf6 {[%clk 0:02:59.8]} 3. c4 {[%clk 0:03:00.6]} 3... e6 {[%clk 0:03:00.1]}
4. d4 {[%clk 0:02:59.6]} 4... exd5 {[%clk 0:03:00.6]} 5. Nf3 {[%clk 0:03:00.1]}
5... Bb4+ {[%clk 0:03:00.9]} 6. Bd2 {[%clk 0:02:58.8]} 6... Bxd2+ {[%clk
0:03:01.1]} 7. Nbxd2 {[%clk 0:02:59.4]} 7... O-O {[%clk 0:03:02]} 8. Be2 {[%clk
0:03:00]} 8... Re8 {[%clk 0:03:02.1]} 9. O-O {[%clk 0:03:00.6]} 9... c5 {[%clk
0:03:02.5]} 10. dxc5 {[%clk 0:02:59.7]} 10... dxc4 {[%clk 0:03:00.1]} 11. Nxc4
{[%clk 0:02:58.1]} 11... Qxd1 {[%clk 0:02:59.1]} 12. Bxd1 {[%clk 0:02:59]} 12...
Na6 {[%clk 0:02:58.8]} 13. Nd6 {[%clk 0:02:57.4]} 13... Rd8 {[%clk 0:02:58.2]}
14. Rc1 {[%clk 0:02:55.8]} 14... Nxc5 {[%clk 0:02:54.8]} 15. Nxf7 {[%clk
0:02:55.7]} 15... Kxf7 {[%clk 0:02:47.9]} 16. Rxc5 {[%clk 0:02:54.9]} 16... Be6
{[%clk 0:02:48.2]} 17. Ng5+ {[%clk 0:02:54.1]} 17... Ke7 {[%clk 0:02:46.1]} 18.
Re5 {[%clk 0:02:53.3]} 18... Rd6 {[%clk 0:02:45.5]} 19. Bb3 {[%clk 0:02:52.2]}
1-0

[Event "*** Titled Tuesday Blitz"]
[Site "Chess.com"]
[Date "2021.04.06"]
[Round "7"]
[White "ajedrez1101"]
[Black "shreyansshah123"]
[Result "1-0"]
[WhiteElo "2118"]
[BlackElo "1638"]
[TimeControl "180+1"]
[EndTime "11:12:58 PDT"]
[Termination "ajedrez1101 won by resignation"]

1. d4 {[%clk 0:03:00.9]} 1... Nf6 {[%clk 0:02:59.1]} 2. Bf4 {[%clk 0:02:59.4]}
2... g6 {[%clk 0:02:58.5]} 3. Nc3 {[%clk 0:02:57.5]} 3... Bg7 {[%clk 0:02:57]}
4. e4 {[%clk 0:02:55.6]} 4... d6 {[%clk 0:02:56.1]} 5. Qd2 {[%clk 0:02:54.8]}
5... Nbd7 {[%clk 0:02:54.9]} 6. O-O-O {[%clk 0:02:50.7]} 6... e5 {[%clk
0:02:55.1]} 7. dxe5 {[%clk 0:02:50]} 7... dxe5 {[%clk 0:02:56]} 8. Bxe5 {[%clk
0:02:49.4]} 8... O-O {[%clk 0:02:53.3]} 9. Bd4 {[%clk 0:02:37.8]} 9... c5 {[%clk
0:02:46.8]} 10. Bxc5 {[%clk 0:02:23.5]} 10... Qa5 {[%clk 0:02:37.9]} 11. Bxf8
{[%clk 0:02:15.3]} 1-0

[Event "*** Titled Tuesday Blitz"]
[Site "Chess.com"]
[Date "2021.04.06"]
[Round "7"]
[White "friesnielsen2302"]
[Black "Chandradi"]
[Result "1-0"]
[WhiteElo "2531"]
[BlackElo "2381"]
[TimeControl "180+1"]
[EndTime "11:13:11 PDT"]
[Termination "friesnielsen2302 won by resignation"]

1. Nf3 {[%clk 0:02:35.9]} 1... Nf6 {[%clk 0:02:59.1]} 2. g3 {[%clk 0:02:36]}
2... b5 {[%clk 0:02:57]} 3. Bg2 {[%clk 0:02:36.5]} 3... Bb7 {[%clk 0:02:57.1]}
4. O-O {[%clk 0:02:37.1]} 4... a6 {[%clk 0:02:51.3]} 5. d3 {[%clk 0:02:37.3]}
5... g6 {[%clk 0:02:51.3]} 6. e4 {[%clk 0:02:37.4]} 6... d6 {[%clk 0:02:51.1]}
7. Nh4 {[%clk 0:02:37.4]} 7... Bg7 {[%clk 0:02:50.9]} 8. f4 {[%clk 0:02:37.5]}
8... c5 {[%clk 0:02:49.9]} 9. Nc3 {[%clk 0:02:37.3]} 9... O-O {[%clk 0:02:48.7]}
10. e5 {[%clk 0:02:37.3]} 10... Bxg2 {[%clk 0:02:46.3]} 11. exf6 {[%clk
0:02:37.4]} 11... Bxf1 {[%clk 0:02:45.6]} 12. fxg7 {[%clk 0:02:37.5]} 12... Kxg7
{[%clk 0:02:45.1]} 13. Qxf1 {[%clk 0:02:38.1]} 13... e6 {[%clk 0:02:40.2]} 14.
Ne4 {[%clk 0:02:35.8]} 14... Qc7 {[%clk 0:02:35.1]} 15. b3 {[%clk 0:02:35.8]}
15... f6 {[%clk 0:02:33.9]} 16. Bb2 {[%clk 0:02:35.7]} 16... h6 {[%clk
0:02:33.3]} 17. g4 {[%clk 0:02:34.4]} 17... d5 {[%clk 0:02:32.4]} 18. Ng3 {[%clk
0:02:33.9]} 18... g5 {[%clk 0:02:27.7]} 19. Nh5+ {[%clk 0:02:32.3]} 1-0

[Event "*** Titled Tuesday Blitz"]
[Site "Chess.com"]
[Date "2021.04.06"]
[Round "7"]
[White "pfalcon1949"]
[Black "Rodchenkov_Vitalij"]
[Result "1-0"]
[WhiteElo "1994"]
[BlackElo "2134"]
[TimeControl "180+1"]
[EndTime "11:13:28 PDT"]
[Termination "pfalcon1949 won by checkmate"]

1. c4 {[%clk 0:03:00.9]} 1... e5 {[%clk 0:02:58.7]} 2. Nc3 {[%clk 0:03:00.6]}
2... Nf6 {[%clk 0:02:57.7]} 3. g3 {[%clk 0:02:59.9]} 3... d5 {[%clk 0:02:57.6]}
4. cxd5 {[%clk 0:02:59.2]} 4... Nxd5 {[%clk 0:02:57.4]} 5. Bg2 {[%clk 0:02:59]}
5... Nb6 {[%clk 0:02:56.4]} 6. e3 {[%clk 0:02:56.1]} 6... Nc6 {[%clk 0:02:56.2]}
7. Nge2 {[%clk 0:02:56]} 7... Be7 {[%clk 0:02:54.1]} 8. O-O {[%clk 0:02:47.7]}
8... O-O {[%clk 0:02:53.8]} 9. f4 {[%clk 0:02:47.4]} 9... exf4 {[%clk
0:02:47.7]} 10. Nxf4 {[%clk 0:02:45]} 10... Re8 {[%clk 0:02:34.1]} 11. b3 {[%clk
0:02:41.7]} 11... Bf6 {[%clk 0:02:32.7]} 12. Bb2 {[%clk 0:02:38.3]} 12... a5
{[%clk 0:02:26.4]} 13. Nfd5 {[%clk 0:02:29.7]} 13... Nxd5 {[%clk 0:02:23.8]} 14.
Bxd5 {[%clk 0:02:28.4]} 14... Bxc3 {[%clk 0:02:19.7]} 15. Bxf7+ {[%clk
0:02:27.5]} 15... Kh8 {[%clk 0:02:18.4]} 16. Bxe8 {[%clk 0:02:18.2]} 16... Bxb2
{[%clk 0:02:17.2]} 17. Rf8# {[%clk 0:02:15.8]} 1-0

[Event "*** Titled Tuesday Blitz"]
[Site "Chess.com"]
[Date "2021.04.06"]
[Round "7"]
[White "tylityli"]
[Black "colegiodemadrid"]
[Result "1-0"]
[WhiteElo "2348"]
[BlackElo "2483"]
[TimeControl "180+1"]
[EndTime "11:14:15 PDT"]
[Termination "tylityli won by resignation"]

1. d4 {[%clk 0:02:51.8]} 1... Nf6 {[%clk 0:02:57.6]} 2. c4 {[%clk 0:02:50.3]}
2... g6 {[%clk 0:02:56.8]} 3. Nc3 {[%clk 0:02:49.7]} 3... Bg7 {[%clk 0:02:57.1]}
4. e4 {[%clk 0:02:49.8]} 4... d6 {[%clk 0:02:57.7]} 5. Nge2 {[%clk 0:02:50]}
5... O-O {[%clk 0:02:58.3]} 6. Ng3 {[%clk 0:02:50.3]} 6... h5 {[%clk 0:02:57.1]}
7. Be2 {[%clk 0:02:47]} 7... h4 {[%clk 0:02:56.5]} 8. Nf1 {[%clk 0:02:46.7]}
8... e5 {[%clk 0:02:57]} 9. d5 {[%clk 0:02:46.1]} 9... c5 {[%clk 0:02:57.4]} 10.
h3 {[%clk 0:02:45.4]} 10... Nh7 {[%clk 0:02:55.9]} 11. Nh2 {[%clk 0:02:40.7]}
11... f5 {[%clk 0:02:55.9]} 12. exf5 {[%clk 0:02:34.8]} 12... gxf5 {[%clk
0:02:54.9]} 13. f4 {[%clk 0:02:31.9]} 13... Nd7 {[%clk 0:02:48.4]} 14. O-O
{[%clk 0:02:26.2]} 14... a6 {[%clk 0:02:41.7]} 15. Qe1 {[%clk 0:02:16.3]} 15...
e4 {[%clk 0:02:36.8]} 16. Be3 {[%clk 0:02:15.9]} 16... Rb8 {[%clk 0:02:29.1]}
17. g4 {[%clk 0:02:13.6]} 17... hxg3 {[%clk 0:02:25.8]} 18. Qxg3 {[%clk
0:02:12.9]} 18... Rf6 {[%clk 0:02:26.3]} 19. Kh1 {[%clk 0:02:05.1]} 19... Nhf8
{[%clk 0:02:25.6]} 20. Rg1 {[%clk 0:02:02.4]} 20... Rg6 {[%clk 0:02:25.5]} 21.
Qf2 {[%clk 0:02:00.3]} 21... Rxg1+ {[%clk 0:02:25.2]} 22. Rxg1 {[%clk
0:01:59.7]} 22... Nf6 {[%clk 0:02:18.5]} 23. Qh4 {[%clk 0:01:52.8]} 23... N6h7
{[%clk 0:02:15]} 24. Qxd8 {[%clk 0:01:50.4]} 1-0

[Event "*** Titled Tuesday Blitz"]
[Site "Chess.com"]
[Date "2021.04.06"]
[Round "7"]
[White "RD4ever"]
[Black "Shahaliyev"]
[Result "1-0"]
[WhiteElo "2882"]
[BlackElo "2656"]
[TimeControl "180+1"]
[EndTime "11:14:28 PDT"]
[Termination "RD4ever won by resignation"]

1. d4 {[%clk 0:03:00.9]} 1... d6 {[%clk 0:02:55.4]} 2. e4 {[%clk 0:03:00.5]}
2... Nf6 {[%clk 0:02:55.4]} 3. Nc3 {[%clk 0:03:00.7]} 3... e5 {[%clk 0:02:55.5]}
4. dxe5 {[%clk 0:03:01.6]} 4... dxe5 {[%clk 0:02:56.4]} 5. Qxd8+ {[%clk
0:03:01.9]} 5... Kxd8 {[%clk 0:02:56.6]} 6. Bc4 {[%clk 0:03:02.5]} 6... Ke8
{[%clk 0:02:56.4]} 7. Nf3 {[%clk 0:03:01.8]} 7... Nbd7 {[%clk 0:02:28.3]} 8. Ng5
{[%clk 0:02:56.9]} 8... Bb4 {[%clk 0:02:19.7]} 9. Nxf7 {[%clk 0:02:44.7]} 9...
Rf8 {[%clk 0:02:15.2]} 10. Ng5 {[%clk 0:02:44.5]} 10... Nb6 {[%clk 0:02:09.4]}
11. Bd3 {[%clk 0:02:40.7]} 11... Bg4 {[%clk 0:01:42.7]} 12. h3 {[%clk
0:02:35.6]} 12... Bh5 {[%clk 0:01:42.4]} 13. a3 {[%clk 0:02:15.5]} 13... Bxc3+
{[%clk 0:01:37.4]} 14. bxc3 {[%clk 0:02:16.4]} 14... h6 {[%clk 0:01:34.9]} 15.
Ne6 {[%clk 0:02:14.9]} 15... Rf7 {[%clk 0:01:35.3]} 16. a4 {[%clk 0:02:13]}
16... Nbd7 {[%clk 0:01:30.3]} 17. Ba3 {[%clk 0:02:10.5]} 17... b6 {[%clk
0:01:30.1]} 18. Nxc7+ {[%clk 0:02:09.4]} 1-0

[Event "*** Titled Tuesday Blitz"]
[Site "Chess.com"]
[Date "2021.04.06"]
[Round "7"]
[White "CSB7"]
[Black "m_ezat"]
[Result "1-0"]
[WhiteElo "2689"]
[BlackElo "2563"]
[TimeControl "180+1"]
[EndTime "11:15:14 PDT"]
[Termination "CSB7 won by resignation"]

1. d4 {[%clk 0:03:00.9]} 1... Nf6 {[%clk 0:00:14.9]} 2. c4 {[%clk 0:02:58.8]}
2... g6 {[%clk 0:00:13.5]} 3. Nc3 {[%clk 0:02:57.7]} 3... Bg7 {[%clk 0:00:14.1]}
4. e4 {[%clk 0:02:56.8]} 4... d6 {[%clk 0:00:14.7]} 5. Nf3 {[%clk 0:02:57.2]}
5... O-O {[%clk 0:00:15.3]} 6. Be2 {[%clk 0:02:57.7]} 6... e5 {[%clk 0:00:15.9]}
7. dxe5 {[%clk 0:02:56.5]} 7... dxe5 {[%clk 0:00:15]} 8. Qxd8 {[%clk 0:02:57.4]}
8... Re8 {[%clk 0:00:15.2]} 9. Qd1 {[%clk 0:02:56.3]} 9... Nc6 {[%clk
0:00:13.8]} 10. O-O {[%clk 0:02:55.6]} 10... Bg4 {[%clk 0:00:13.9]} 11. Be3
{[%clk 0:02:56.1]} 11... Rad8 {[%clk 0:00:13.1]} 12. Qb3 {[%clk 0:02:53.5]}
12... b6 {[%clk 0:00:12.5]} 13. h3 {[%clk 0:02:50.4]} 13... Bxf3 {[%clk
0:00:13.1]} 14. Bxf3 {[%clk 0:02:50.7]} 14... Nd4 {[%clk 0:00:13.8]} 15. Bxd4
{[%clk 0:02:50.4]} 15... exd4 {[%clk 0:00:13.1]} 16. Nd5 {[%clk 0:02:50.8]}
16... Nd7 {[%clk 0:00:12.6]} 17. Nxc7 {[%clk 0:02:50.4]} 17... Ne5 {[%clk
0:00:12.9]} 18. Nxe8 {[%clk 0:02:50.1]} 18... Rxe8 {[%clk 0:00:09.6]} 19. Rad1
{[%clk 0:02:50.3]} 19... Rd8 {[%clk 0:00:09.6]} 20. Be2 {[%clk 0:02:48.7]} 1-0

[Event "*** Titled Tuesday Blitz"]
[Site "Chess.com"]
[Date "2021.04.06"]
[Round "7"]
[White "Aslanov_Umid"]
[Black "Cryptochess"]
[Result "1/2-1/2"]
[WhiteElo "2410"]
[BlackElo "2550"]
[TimeControl "180+1"]
[EndTime "11:15:45 PDT"]
[Termination "Game drawn by repetition"]

1. e4 {[%clk 0:02:56.2]} 1... e5 {[%clk 0:02:50.9]} 2. Nf3 {[%clk 0:02:51.5]}
2... Nf6 {[%clk 0:02:49.2]} 3. d4 {[%clk 0:02:51.1]} 3... Nxe4 {[%clk 0:02:49]}
4. Nxe5 {[%clk 0:02:50.3]} 4... d6 {[%clk 0:02:48.8]} 5. Nf3 {[%clk 0:02:49.2]}
5... d5 {[%clk 0:02:49.4]} 6. Bd3 {[%clk 0:02:48.5]} 6... Bd6 {[%clk 0:02:50.1]}
7. O-O {[%clk 0:02:48.4]} 7... O-O {[%clk 0:02:50.8]} 8. h3 {[%clk 0:02:47.1]}
8... Nd7 {[%clk 0:02:50.5]} 9. c4 {[%clk 0:02:46.4]} 9... c6 {[%clk 0:02:50.7]}
10. Nc3 {[%clk 0:02:46.4]} 10... Nxc3 {[%clk 0:02:49.6]} 11. bxc3 {[%clk
0:02:47.2]} 11... dxc4 {[%clk 0:02:50]} 12. Bxc4 {[%clk 0:02:38.5]} 12... Nf6
{[%clk 0:02:49]} 13. Bg5 {[%clk 0:02:38]} 13... Bf5 {[%clk 0:02:48.8]} 14. Bd3
{[%clk 0:02:37.7]} 14... Bxd3 {[%clk 0:02:45.1]} 15. Qxd3 {[%clk 0:02:38.6]}
15... h6 {[%clk 0:02:45.8]} 16. Bh4 {[%clk 0:02:35.7]} 16... Re8 {[%clk
0:02:46.1]} 17. Rfe1 {[%clk 0:02:34.4]} 17... g5 {[%clk 0:02:38.3]} 18. Bg3
{[%clk 0:02:32]} 18... Bxg3 {[%clk 0:02:38.1]} 19. fxg3 {[%clk 0:02:32.6]} 19...
Qd6 {[%clk 0:02:36.6]} 20. Ne5 {[%clk 0:02:30.8]} 20... Nd7 {[%clk 0:02:32]} 21.
Nxf7 {[%clk 0:02:17.7]} 21... Kxf7 {[%clk 0:01:51.2]} 22. Qh7+ {[%clk
0:02:15.2]} 22... Kf8 {[%clk 0:01:51.6]} 23. Qh8+ {[%clk 0:01:18.5]} 23... Kf7
{[%clk 0:01:50.3]} 24. Qh7+ {[%clk 0:01:18.7]} 24... Kf8 {[%clk 0:01:50.6]} 25.
Qh8+ {[%clk 0:01:17.1]} 25... Kf7 {[%clk 0:01:51]} 26. Qh7+ {[%clk 0:00:50.8]}
1/2-1/2

[Event "*** Titled Tuesday Blitz"]
[Site "Chess.com"]
[Date "2021.04.06"]
[Round "7"]
[White "gmgamil"]
[Black "Hasangatin_Ramil"]
[Result "1-0"]
[WhiteElo "2806"]
[BlackElo "2580"]
[TimeControl "180+1"]
[EndTime "11:15:58 PDT"]
[Termination "gmgamil won by resignation"]

1. d4 {[%clk 0:03:00.9]} 1... Nf6 {[%clk 0:02:59.2]} 2. Nc3 {[%clk 0:03:01.8]}
2... d5 {[%clk 0:02:57.3]} 3. Bg5 {[%clk 0:03:02.3]} 3... Nbd7 {[%clk 0:02:57]}
4. f3 {[%clk 0:03:02.4]} 4... c6 {[%clk 0:02:54.8]} 5. e4 {[%clk 0:03:02]} 5...
dxe4 {[%clk 0:02:54.1]} 6. fxe4 {[%clk 0:03:02.9]} 6... e5 {[%clk 0:02:53.9]} 7.
dxe5 {[%clk 0:03:03.8]} 7... Nxe5 {[%clk 0:02:40.6]} 8. Qxd8+ {[%clk 0:03:01.4]}
8... Kxd8 {[%clk 0:02:41.5]} 9. O-O-O+ {[%clk 0:02:50.8]} 9... Ke8 {[%clk
0:02:40.6]} 10. Nf3 {[%clk 0:02:50.5]} 10... Nxf3 {[%clk 0:02:36.2]} 11. gxf3
{[%clk 0:02:48.7]} 11... Be6 {[%clk 0:02:36.3]} 12. Be3 {[%clk 0:02:25.6]} 12...
Nd7 {[%clk 0:02:32.2]} 13. Rg1 {[%clk 0:01:55.7]} 13... g6 {[%clk 0:02:29.6]}
14. Bd4 {[%clk 0:01:55.3]} 14... Rg8 {[%clk 0:02:24.8]} 15. f4 {[%clk
0:01:55.5]} 15... f5 {[%clk 0:02:18]} 16. exf5 {[%clk 0:01:49.3]} 16... Bf7
{[%clk 0:02:07.8]} 17. Bh3 {[%clk 0:01:45.2]} 17... gxf5 {[%clk 0:01:48.7]} 18.
Rge1+ {[%clk 0:01:41.1]} 18... Kd8 {[%clk 0:01:39.2]} 19. Bxf5 {[%clk
0:01:41.5]} 19... Kc7 {[%clk 0:01:35.9]} 20. Bxd7 {[%clk 0:01:36.1]} 20... Kxd7
{[%clk 0:01:35.7]} 21. Bb6+ {[%clk 0:01:34.5]} 21... Bd6 {[%clk 0:01:28.3]} 22.
Bc5 {[%clk 0:01:30.8]} 22... Bd5 {[%clk 0:01:25.7]} 23. Nxd5 {[%clk 0:01:30.7]}
23... Bxc5 {[%clk 0:01:20.9]} 24. Nb6+ {[%clk 0:01:28]} 24... Kc7 {[%clk
0:01:20.1]} 25. Nxa8+ {[%clk 0:01:28.3]} 25... Rxa8 {[%clk 0:01:20.5]} 26. Re5
{[%clk 0:01:21.4]} 26... Bd6 {[%clk 0:01:18.6]} 27. Rf5 {[%clk 0:01:22]} 27...
Bc5 {[%clk 0:01:14.6]} 28. Rxc5 {[%clk 0:01:21.3]} 1-0